fUST/lending_fUST_20251012
["ID","MTS","AMOUNT","RATE_DAILY","PERIOD"]
[390907903,1760209846160,-200.0,0.00030361,120]
[390907904,1760209846171,-250.0,0.000304,10]
[390907905,1760209846181,-217.71,0.0003041,120]
[390907906,1760209846191,-152.198179,0.00030493,60]
[390907907,1760209846200,-154.809388,0.00030493,60]
[390907908,1760209846209,-777.40354,0.000305,120]
[390907909,1760209846219,-225.31606,0.000305,120]
[390907910,1760209846228,-3787.94,0.000305,2]
[390907911,1760209846242,-250.0,0.000305,10]
[390907912,1760209846251,-154.809388,0.00030516,7]
[390907914,1760209846261,-310.63948797,0.00030536,5]
[390907916,1760209846270,-3292.0,0.0003054,2]
[390907918,1760209846279,-217.71,0.00030547,120]
[390907920,1760209846289,-152.198179,0.00030557,60]
[390907921,1760209846298,-154.809388,0.00030557,60]
[390907922,1760209846307,-200.0,0.00030591,120]
[390907923,1760209846318,-250.0,0.000306,10]
[390907924,1760209846327,-217.71,0.00030684,120]
[390907925,1760209846336,-787.75,0.00030684,14]
[390907926,1760209846345,-154.809388,0.00030698,10]
[390907927,1760209846355,-250.0,0.000307,10]
[390907928,1760209846364,-152.198179,0.0003079,7]
[390907929,1760209846373,-154.809388,0.0003079,7]
[390907930,1760209846383,-311.218736,0.000308,10]
[390907931,1760209846392,-1764.76,0.00030816,2]
[390907932,1760209846401,-187.76775891,0.00030821,5]
[390907933,1760209846410,-217.71,0.00030821,120]
[390907934,1760209846420,-623.37782097,0.00030921,2]
[390907935,1760209846429,-217.71,0.00030958,120]
[390907936,1760209846438,-1400.0,0.00030958,7]
[390907937,1760209846448,-500.0,0.00030973,5]
[390907938,1760209846457,-1000.0,0.00030973,5]
[390907939,1760209846467,-303.34271639,0.0003099,2]
[390907940,1760209846477,-1000.0,0.00030999,28]
[390907941,1760209846488,-44691.91231515,0.00031,120]
[390907942,1760209846546,-867.41849115,0.00031,120]
[390907943,1760209846558,-344.27777,0.00031,120]
[390907944,1760209846584,1041.71,0.00022591,2]
[390907945,1760209846610,500.0,0.00022591,2]
[390907946,1760209846638,500.0,0.00023579,2]
[390907947,1760209846665,1041.71,0.00022591,2]
[390907948,1760209846692,500.0,0.00022591,2]
[390907949,1760209846728,1041.8445575,0.00022591,2]
[390907951,1760209846760,500.0,0.00022591,2]
[390907952,1760209846792,500.0,0.0002259,2]
[390907953,1760209846818,500.0,0.00022591,2]
[390907954,1760209846844,500.0,0.00023579,2]
[390907955,1760209846875,500.0,0.00022591,2]
[390907956,1760209846901,500.0,0.0002259,2]
[390907957,1760209846937,500.0,0.00023579,2]
[390907958,1760209846964,500.0,0.0002259,2]
[390907959,1760209846990,500.0,0.00022591,2]
[390907960,1760209847021,62.57951611,0.00023579,2]
[390907961,1760209847043,437.42048389,0.00023579,2]
[390907962,1760209847070,500.0,0.0002259,2]
[390907963,1760209847100,500.0,0.00022591,2]
[390907964,1760209847128,375.3,0.00023579,2]
[390907965,1760209847238,-3e-08,0.00023674,2]
[390907966,1760209847263,500.0,0.0002259,2]
[390907967,1760209847298,496.28,0.00022591,2]
[390907968,1760209847324,500.0,0.0002259,2]
[390907969,1760209847354,5000.0,0.0002359,2]
[390907970,1760209847386,500.0,0.0002259,2]
[390907971,1760209847413,500.0,0.0002259,2]
[390907972,1760209847450,500.0,0.0002259,2]
[390907973,1760209847485,191.00951611,0.0002259,2]
[390907974,1760209847507,308.99048389,0.0002259,2]
[390907975,1760209847532,500.0,0.0002259,2]
[390907976,1760209847565,500.0,0.0002259,2]
[390907977,1760209847594,500.0,0.0002259,2]
[390907978,1760209847624,575.38,0.0002259,2]
[390907979,1760209847643,-499.99999997,0.00023674,2]
[390907980,1760209847652,-500.0,0.00023674,2]
[390907981,1760209847662,-415.126,0.00026791,2]
[390907982,1760209847672,-411.0,0.00029791,2]
[390907983,1760209847681,-150.0,0.00030662,30]
[390907984,1760209847690,-551.13897932,0.00030936,30]
[390907985,1760209847699,-50953.51708957,0.00031,120]
[390907986,1760209847711,-9624.04584462,0.00031,120]
[390907987,1760209847760,500.0,0.00022591,2]
[390907988,1760209847797,294.33,0.00022591,2]
[390907989,1760209847847,500.0,0.00023579,2]
[390907990,1760209847872,500.0,0.00023579,2]
[390907991,1760209847900,567.19,0.00023579,2]
[390907992,1760209847925,-1424.53889228,0.00024821,2]
[390907993,1760209847935,-1424.53889226,0.00026452,2]
[390907994,1760209847945,-588.4106815,0.00028746,30]
[390907995,1760209847954,-7160.29314459,0.0003,60]
[390907996,1760209847992,419.17782131,0.00022591,2]
[390907997,1760209848024,500.0,0.00022591,2]
[390907998,1760209849130,500.0,0.00022591,2]
[390907999,1760209849212,500.0,0.00022591,2]
[390908000,1760209849489,500.0,0.00022591,2]
[390908001,1760209849742,500.0,0.00022591,2]
[390908002,1760209849961,353.39081104,0.00022591,2]
[390908003,1760209850417,500.0,0.00022591,2]
[390908004,1760209851255,500.0,0.00023579,2]
[390908005,1760209851500,500.0,0.00023579,2]
[390908006,1760209851779,500.0,0.00023579,2]
[390908007,1760209852037,497.6,0.00023579,2]
[390908008,1760209852223,500.0,0.00022591,2]
[390908009,1760209852489,500.0,0.00022591,2]
[390908010,1760209892079,5000.0,0.00021,2]
[390908011,1760209898721,85457.0,0.00024,30]
[390908012,1760209965303,158.6,0.00018893,2]
[390908013,1760209971078,317.19,0.00020611,2]
[390908014,1760210050926,152.54,0.00018977,2]
[390908015,1760210051395,305.08,0.00020703,2]
[390908016,1760210068505,-393.36971672,0.0002214,2]
[390908017,1760210072098,-303.99653115,0.0002214,2]
[390908018,1760210073867,-239.16009592,0.0002214,2]
[390908019,1760210110193,178.0,8.3e-07,2]
[390908020,1760210111330,178.0,8.3e-07,2]
[390908021,1760210129886,150.0,0.00019123,2]
[390908022,1760210130311,293.43,0.00020861,2]
[390908023,1760210145903,402.02464068,0.00030319,60]
[390908024,1760210159006,-174.29460539,0.0002214,2]
[390908025,1760210165793,-325.70539461,0.0002214,2]
[390908026,1760210208949,150.0,0.00021325,2]
[390908027,1760210250905,5000.0,0.0002214,2]
[390908028,1760210251487,-150.0,0.0002214,2]
[390908029,1760210252035,-165.04515383,0.00022328,2]
[390908030,1760210269599,-231.60908016,0.00022491,2]
[390908031,1760210271551,-260.98,0.00022581,3]
[390908032,1760210271591,-782.99,0.00022581,3]
[390908033,1760210273809,5000.0,0.00022491,2]
[390908034,1760210292049,150.0,0.00019017,2]
[390908035,1760210292391,-1200.0,0.00022587,2]
[390908036,1760210292423,-300.0,0.00022587,2]
[390908037,1760210292510,282.14,0.00020745,2]
[390908038,1760210292888,423.22,0.00022474,2]
[390908039,1760210296681,5000.0,0.00022587,2]
[390908040,1760210319125,1294.65,0.00022587,2]
[390908041,1760210319153,3705.35,0.00022587,2]
[390908042,1760210342341,300.0,0.00022587,2]
[390908043,1760210342514,5000.0,0.00022587,2]
[390908044,1760210342670,-300.0,0.00022588,2]
[390908045,1760210342706,-1200.0,0.00022588,2]
[390908046,1760210342738,-500.0,0.00022588,2]
[390908047,1760210342767,-181.12,0.00022588,2]
[390908048,1760210342797,-500.0,0.00022588,2]
[390908049,1760210342827,-500.0,0.00022588,2]
[390908050,1760210342861,-500.0,0.00022588,2]
[390908051,1760210342890,-500.0,0.00022588,2]
[390908052,1760210342924,-500.0,0.00022588,2]
[390908053,1760210342952,-137.77,0.00022588,2]
[390908054,1760210343105,-362.23,0.00022588,2]
[390908055,1760210343135,-500.0,0.00022588,2]
[390908056,1760210343169,-500.0,0.00022588,2]
[390908057,1760210343197,-500.0,0.00022588,2]
[390908058,1760210343226,-500.0,0.00022588,2]
[390908059,1760210343254,-617.17,0.00022588,2]
[390908060,1760210343282,-500.0,0.00022588,2]
[390908061,1760210343310,-296.64932885,0.00022588,2]
[390908062,1760210343338,-500.0,0.00022588,2]
[390908063,1760210343366,-500.0,0.00022588,2]
[390908064,1760210343712,-500.0,0.00022588,2]
[390908065,1760210343741,-500.0,0.00022588,2]
[390908066,1760210343771,-500.0,0.00022588,2]
[390908067,1760210343799,-500.0,0.00022588,2]
[390908068,1760210343829,-465.28,0.00022588,2]
[390908069,1760210343858,-500.0,0.00022588,2]
[390908070,1760210343888,-500.0,0.00022588,2]
[390908071,1760210343920,-500.0,0.00022588,2]
[390908072,1760210343953,-500.0,0.00022588,2]
[390908073,1760210343981,-500.0,0.00022588,2]
[390908074,1760210344081,-500.0,0.00022588,2]
[390908075,1760210344110,-500.0,0.00022588,2]
[390908076,1760210344138,-500.0,0.00022588,2]
[390908077,1760210344169,-500.0,0.00022588,2]
[390908078,1760210344198,-524.88,0.00022588,2]
[390908079,1760210344232,-591.14,0.00022588,2]
[390908080,1760210344265,-591.14,0.00022588,2]
[390908081,1760210344384,591.14,0.00022588,2]
[390908082,1760210344618,591.14,0.00022588,2]
[390908083,1760210345299,591.14,0.00022588,2]
[390908084,1760210345337,591.14,0.00022588,2]
[390908085,1760210345375,221.13,0.00022588,2]
[390908086,1760210345399,370.01,0.00022588,2]
[390908087,1760210345438,591.14,0.00022588,2]
[390908088,1760210345479,591.14,0.00022588,2]
[390908089,1760210345727,591.14,0.00022588,2]
[390908090,1760210345971,591.14,0.00022588,2]
[390908091,1760210346219,591.14,0.00022588,2]
[390908092,1760210346500,591.14,0.00022588,2]
[390908093,1760210346751,591.14,0.00022588,2]
[390908094,1760210347509,591.14,0.00022588,2]
[390908095,1760210347798,591.14,0.00022588,2]
[390908096,1760210348073,591.14,0.00022588,2]
[390908097,1760210348524,591.14,0.00022588,2]
[390908098,1760210348788,591.14,0.00022588,2]
[390908099,1760210349043,591.14,0.00022588,2]
[390908100,1760210349299,591.14,0.00022588,2]
[390908101,1760210349544,591.14,0.00022588,2]
[390908102,1760210349787,591.14,0.00022588,2]
[390908103,1760210350054,591.36,0.00022588,2]
[390908104,1760210362906,-300.0,0.00022589,2]
[390908105,1760210362936,-500.0,0.00022589,2]
[390908106,1760210362964,-500.0,0.00022589,2]
[390908107,1760210362991,-500.0,0.00022589,2]
[390908108,1760210363018,-500.0,0.00022589,2]
[390908109,1760210363047,-500.0,0.00022589,2]
[390908110,1760210363077,-500.0,0.00022589,2]
[390908111,1760210363108,-500.0,0.00022589,2]
[390908112,1760210363136,-500.0,0.00022589,2]
[390908113,1760210363165,-500.0,0.00022589,2]
[390908114,1760210363452,-500.0,0.00022589,2]
[390908115,1760210363483,-542.58,0.00022589,2]
[390908116,1760210363514,-500.0,0.00022589,2]
[390908117,1760210363543,-500.0,0.00022589,2]
[390908118,1760210363573,-500.0,0.00022589,2]
[390908119,1760210363602,-500.0,0.00022589,2]
[390908120,1760210363632,-500.0,0.00022589,2]
[390908121,1760210363660,-500.0,0.00022589,2]
[390908122,1760210363693,-500.0,0.00022589,2]
[390908123,1760210363722,-414.85,0.00022589,2]
[390908124,1760210363960,-85.15,0.00022589,2]
[390908125,1760210363989,-500.0,0.00022589,2]
[390908126,1760210364018,-500.0,0.00022589,2]
[390908127,1760210364048,-500.0,0.00022589,2]
[390908128,1760210364077,-500.0,0.00022589,2]
[390908129,1760210364106,-500.0,0.00022589,2]
[390908130,1760210364137,-500.0,0.00022589,2]
[390908131,1760210364168,-269.7646579,0.00022589,2]
[390908132,1760210364200,-500.0,0.00022589,2]
[390908133,1760210364229,-500.0,0.00022589,2]
[390908134,1760210364258,-500.0,0.00022589,2]
[390908135,1760210364391,-500.0,0.00022589,2]
[390908136,1760210364427,-500.0,0.00022589,2]
[390908137,1760210364459,-510.9,0.00022589,2]
[390908138,1760210364488,-500.0,0.00022589,2]
[390908139,1760210364517,-500.0,0.00022589,2]
[390908140,1760210364547,-500.0,0.00022589,2]
[390908141,1760210364577,-500.0,0.00022589,2]
[390908142,1760210364607,-500.0,0.00022589,2]
[390908143,1760210364635,-583.5,0.00022589,2]
[390908144,1760210364664,-311.21,0.00022589,2]
[390908145,1760210365950,5000.0,0.00022588,2]
[390908146,1760210365982,-188.79,0.00022589,2]
[390908147,1760210366011,-500.0,0.00022589,2]
[390908148,1760210366039,-500.0,0.00022589,2]
[390908149,1760210366068,-500.0,0.00022589,2]
[390908150,1760210366097,-500.0,0.00022589,2]
[390908151,1760210366126,-500.0,0.00022589,2]
[390908152,1760210366155,-500.0,0.00022589,2]
[390908153,1760210366184,-500.0,0.00022589,2]
[390908154,1760210366212,-500.0,0.00022589,2]
[390908155,1760210366240,-500.0,0.00022589,2]
[390908156,1760210366268,-122.43,0.00022589,2]
[390908157,1760210366308,-377.57,0.00022589,2]
[390908158,1760210366336,-500.0,0.00022589,2]
[390908159,1760210366364,-500.0,0.00022589,2]
[390908160,1760210366391,-500.0,0.00022589,2]
[390908161,1760210366426,-500.0,0.00022589,2]
[390908162,1760210366453,-522.30946712,0.00022589,2]
[390908163,1760210366481,-500.0,0.00022589,2]
[390908164,1760210366510,-500.0,0.00022589,2]
[390908165,1760210366538,-500.0,0.00022589,2]
[390908166,1760210366566,-500.0,0.00022589,2]
[390908167,1760210366604,-500.0,0.00022589,2]
[390908168,1760210366633,-500.0,0.00022589,2]
[390908169,1760210366661,-500.0,0.00022589,2]
[390908170,1760210366690,-500.0,0.00022589,2]
[390908171,1760210366718,-500.0,0.00022589,2]
[390908172,1760210366746,-500.0,0.00022589,2]
[390908173,1760210366774,-500.0,0.00022589,2]
[390908174,1760210366803,-500.0,0.00022589,2]
[390908175,1760210366831,-500.0,0.00022589,2]
[390908176,1760210366858,-230.02,0.00022589,2]
[390908177,1760210366887,-39.97,0.00022589,2]
[390908178,1760210366926,-460.03,0.00022589,2]
[390908179,1760210366956,-500.0,0.00022589,2]
[390908180,1760210366984,-233.54555738,0.00022589,2]
[390908181,1760210367012,-500.0,0.00022589,2]
[390908182,1760210367039,-500.0,0.00022589,2]
[390908183,1760210367066,-500.0,0.00022589,2]
[390908184,1760210367094,-500.0,0.00022589,2]
[390908185,1760210367122,-500.0,0.00022589,2]
[390908186,1760210367148,-500.0,0.00022589,2]
[390908187,1760210367177,-500.0,0.00022589,2]
[390908188,1760210367203,-112.85888524,0.00022589,2]
[390908189,1760210367521,-387.14111476,0.00022589,2]
[390908190,1760210367550,-500.0,0.00022589,2]
[390908191,1760210367578,-500.0,0.00022589,2]
[390908192,1760210367607,-500.0,0.00022589,2]
[390908193,1760210367634,-203.5845,0.00022589,2]
[390908194,1760210367663,-500.0,0.00022589,2]
[390908195,1760210367694,-537.12677625,0.00022589,2]
[390908196,1760210367722,-500.0,0.00022589,2]
[390908197,1760210367750,-319.82007156,0.00022589,2]
[390908198,1760210367778,-500.0,0.00022589,2]
[390908199,1760210367807,-500.0,0.00022589,2]
[390908200,1760210368217,500.0,0.00022588,2]
[390908201,1760210368807,500.0,0.00022588,2]
[390908202,1760210369730,-500.0,0.00022589,2]
[390908203,1760210369760,-304.58660834,0.00022589,2]
[390908204,1760210369792,-500.0,0.00022589,2]
[390908205,1760210369823,-500.0,0.00022589,2]
[390908206,1760210369853,-500.0,0.00022589,2]
[390908207,1760210369882,-500.0,0.00022589,2]
[390908208,1760210369910,-500.0,0.00022589,2]
[390908209,1760210369942,-500.0,0.00022589,2]
[390908210,1760210369972,-500.0,0.00022589,2]
[390908211,1760210370002,-500.0,0.00022589,2]
[390908212,1760210370032,-158.71117287,0.00022589,2]
[390908213,1760210370065,-73.41443758,0.00022589,2]
[390908214,1760210370093,-500.0,0.00022589,2]
[390908215,1760210370121,-500.0,0.00022589,2]
[390908216,1760210370150,-500.0,0.00022589,2]
[390908217,1760210370179,-500.0,0.00022589,2]
[390908218,1760210370210,-500.0,0.00022589,2]
[390908219,1760210370241,-500.0,0.00022589,2]
[390908220,1760210370269,-500.0,0.00022589,2]
[390908221,1760210370297,-500.0,0.00022589,2]
[390908222,1760210370325,-500.0,0.00022589,2]
[390908223,1760210370353,-353.18112484,0.00022589,2]
[390908224,1760210370725,-146.81887516,0.00022589,2]
[390908225,1760210370753,-500.0,0.00022589,2]
[390908226,1760210370782,-500.0,0.00022589,2]
[390908227,1760210370810,-500.0,0.00022589,2]
[390908228,1760210370839,-500.0,0.00022589,2]
[390908229,1760210370867,-500.0,0.00022589,2]
[390908230,1760210370896,-500.0,0.00022589,2]
[390908231,1760210370924,-500.0,0.00022589,2]
[390908232,1760210370960,-500.0,0.00022589,2]
[390908233,1760210370988,-500.0,0.00022589,2]
[390908234,1760210371018,-206.37224969,0.00022589,2]
[390908235,1760210371239,-293.6277503,0.00022589,2]
[390908236,1760210371265,-355.65601489,0.00022589,2]
[390908237,1760210371294,-500.0,0.00022589,2]
[390908238,1760210371322,-502.97,0.00022589,2]
[390908239,1760210371350,-500.0,0.00022589,2]
[390908240,1760210371378,-500.0,0.00022589,2]
[390908241,1760210372999,150.0,0.00018855,2]
[390908242,1760210373030,299.68,0.00020569,2]
[390908243,1760210373068,449.52,0.00022283,2]
[390908244,1760210378975,500.0,0.00022589,2]
[390908245,1760210387677,3296.30246962,0.00022589,2]
[390908246,1760210387704,1703.69753038,0.00022589,2]
[390908247,1760210391707,500.0,0.00022589,2]
[390908248,1760210391948,500.0,0.00022589,2]
[390908249,1760210395002,500.0,0.00022588,2]
[390908250,1760210395249,500.0,0.00022588,2]
[390908251,1760210395529,500.0,0.00022588,2]
[390908252,1760210398346,500.0,0.00022589,2]
[390908253,1760210398384,500.0,0.00022589,2]
[390908254,1760210398597,500.0,0.00022589,2]
[390908255,1760210398629,500.0,0.00022589,2]
[390908256,1760210398837,375.3945059,0.00022589,2]
[390908257,1760210402013,300.0,0.00022589,2]
[390908258,1760210407210,1200.0,0.00022589,2]
[390908259,1760210409013,500.0,0.00022588,2]
[390908260,1760210409260,500.0,0.00022588,2]
[390908261,1760210409532,500.0,0.00022588,2]
[390908262,1760210409775,276.58,0.00022588,2]
[390908263,1760210410719,144.33796372,0.00022589,2]
[390908264,1760210410744,4855.66203628,0.00022589,2]
[390908265,1760210434018,5000.0,0.00022589,2]
[390908266,1760210435044,200.0,0.00027,120]
[390908267,1760210441878,144.34796372,0.00022588,2]
[390908268,1760210441901,355.65203628,0.00022588,2]
[390908269,1760210442120,500.0,0.00022588,2]
[390908270,1760210446319,500.0,0.00022589,2]
[390908271,1760210447639,500.0,0.00022588,2]
[390908272,1760210447865,500.0,0.00022588,2]
[390908273,1760210448092,500.0,0.00022588,2]
[390908274,1760210448323,500.0,0.00022588,2]
[390908275,1760210448573,553.84,0.00022588,2]
[390908276,1760210450804,155.24,0.00018863,2]
[390908277,1760210451209,310.48,0.00020578,2]
[390908278,1760210451624,465.72,0.00022293,2]
[390908279,1760210454217,500.0,0.00022588,2]
[390908280,1760210454499,323.23,0.00022588,2]
[390908281,1760210456383,4335.84796372,0.00022589,2]
[390908282,1760210484686,500.0,0.00022588,2]
[390908283,1760210484952,489.18,0.00022588,2]
[390908284,1760210509954,500.0,0.00022588,2]
[390908285,1760210510181,187.08,0.00022588,2]
[390908286,1760210522475,300.0,0.00022588,2]
[390908287,1760210529988,151.42,0.00018861,2]
[390908288,1760210530388,302.84,0.00020575,2]
[390908289,1760210530778,454.26,0.0002229,2]
[390908290,1760210535974,500.0,0.00022588,2]
[390908291,1760210536211,500.0,0.00022588,2]
[390908292,1760210536463,500.0,0.00022588,2]
[390908293,1760210536703,500.0,0.00022588,2]
[390908294,1760210536908,302.51602579,0.00022475,8]
[390908295,1760210539849,500.0,0.00022588,2]
[390908296,1760210540084,500.0,0.00022588,2]
[390908297,1760210540355,500.0,0.00022588,2]
[390908298,1760210540611,500.0,0.00022588,2]
[390908299,1760210540848,500.0,0.00022588,2]
[390908300,1760210541111,500.0,0.00022588,2]
[390908301,1760210541508,500.0,0.00022588,2]
[390908302,1760210541765,500.0,0.00022588,2]
[390908303,1760210542009,239.62,0.00022588,2]
[390908304,1760210543806,500.0,0.00022588,2]
[390908305,1760210544351,73.09397421,0.00022588,2]
[390908306,1760210544374,426.90602579,0.00022588,2]
[390908307,1760210545794,1200.0,0.00022588,2]
[390908308,1760210582609,300.0,0.00022588,2]
[390908309,1760210590923,500.0,0.00022588,2]
[390908310,1760210591162,500.0,0.00022588,2]
[390908311,1760210594764,301.94742595,0.00022588,2]
[390908312,1760210596715,500.0,0.00022588,2]
[390908313,1760210602060,500.0,0.00022588,2]
[390908314,1760210602334,500.0,0.00022588,2]
[390908315,1760210602614,500.0,0.00022588,2]
[390908316,1760210602861,408.25,0.00022588,2]
[390908317,1760210618360,150.0,0.00018833,2]
[390908318,1760210618613,500.0,0.00022588,2]
[390908319,1760210618747,279.71,0.00020545,2]
[390908320,1760210618851,500.0,0.00022588,2]
[390908321,1760210619086,500.0,0.00022588,2]
[390908322,1760210619203,419.57,0.00022257,2]
[390908323,1760210619310,569.84,0.00022588,2]
[390908324,1760210619790,500.0,0.00022588,2]
[390908325,1760210620071,500.0,0.00022588,2]
[390908326,1760210620284,443.78654826,0.00022588,2]
[390908327,1760210620305,56.21345174,0.00022588,2]
[390908328,1760210622561,500.0,0.00022588,2]
[390908329,1760210622797,500.0,0.00022588,2]
[390908330,1760210636343,500.0,0.00022588,2]
[390908331,1760210642483,300.0,0.00022588,2]
[390908332,1760210646045,500.0,0.00022588,2]
[390908333,1760210648676,500.0,0.00022588,2]
[390908334,1760210648905,500.0,0.00022588,2]
[390908335,1760210650596,5000.0,0.00022588,2]
[390908336,1760210651157,500.0,0.00022588,2]
[390908337,1760210651528,500.0,0.00022588,2]
[390908338,1760210651798,500.0,0.00022588,2]
[390908339,1760210652041,500.0,0.00022588,2]
[390908340,1760210652270,590.74,0.00022588,2]
[390908341,1760210653746,-500.0,0.00022589,2]
[390908342,1760210653773,-500.0,0.00022589,2]
[390908343,1760210653800,-500.0,0.00022589,2]
[390908344,1760210653827,-500.0,0.00022589,2]
[390908345,1760210653853,-500.0,0.00022589,2]
[390908346,1760210653879,-234.18,0.00022589,2]
[390908347,1760210653905,-500.0,0.00022589,2]
[390908348,1760210653935,-500.0,0.00022589,2]
[390908349,1760210653962,-500.0,0.00022589,2]
[390908350,1760210653988,-500.0,0.00022589,2]
[390908351,1760210654015,-31.65,0.00022589,2]
[390908352,1760210654655,-468.35,0.00022589,2]
[390908353,1760210654685,-500.0,0.00022589,2]
[390908354,1760210654712,-355.26,0.00022589,2]
[390908355,1760210654742,-500.0,0.00022589,2]
[390908356,1760210654770,-357.7570445,0.00022589,2]
[390908357,1760210654796,-500.0,0.00022589,2]
[390908358,1760210654824,-500.0,0.00022589,2]
[390908359,1760210654851,-500.0,0.00022589,2]
[390908360,1760210654879,-500.0,0.00022589,2]
[390908361,1760210654906,-500.0,0.00022589,2]
[390908362,1760210654935,-137.275911,0.00022589,2]
[390908363,1760210654974,-362.724089,0.00022589,2]
[390908364,1760210655001,-560.98,0.00022589,2]
[390908365,1760210655030,-500.0,0.00022589,2]
[390908366,1760210655060,-500.0,0.00022589,2]
[390908367,1760210655089,-500.0,0.00022589,2]
[390908368,1760210655117,-500.0,0.00022589,2]
[390908369,1760210655147,-500.0,0.00022589,2]
[390908370,1760210655182,-500.0,0.00022589,2]
[390908371,1760210655216,-500.0,0.00022589,2]
[390908372,1760210665098,1152.601822,0.00022589,2]
[390908373,1760210665119,1281.298178,0.00022589,2]
[390908374,1760210673351,5000.0,0.00022589,2]
[390908375,1760210674041,500.0,0.00022588,2]
[390908376,1760210679904,500.0,0.00022588,2]
[390908377,1760210680146,500.0,0.00022588,2]
[390908378,1760210680820,500.0,0.00022588,2]
[390908379,1760210681048,500.0,0.00022588,2]
[390908380,1760210681279,500.0,0.00022588,2]
[390908381,1760210686602,472.4854941,0.00022588,2]
[390908382,1760210688478,500.0,0.00022588,2]
[390908383,1760210688709,500.0,0.00022588,2]
[390908384,1760210688952,527.5245059,0.00022588,2]
[390908385,1760210688974,45.2654941,0.00022588,2]
[390908386,1760210694998,500.0,0.00022589,2]
[390908387,1760210695025,500.0,0.00022589,2]
[390908388,1760210695264,500.0,0.00022589,2]
[390908389,1760210695291,501.53730619,0.00022589,2]
[390908390,1760210695493,500.0,0.00022589,2]
[390908391,1760210696380,5000.0,0.00022589,2]
[390908392,1760210697079,500.0,0.00022589,2]
[390908393,1760210697299,500.0,0.00022589,2]
[390908394,1760210697590,500.0,0.00022589,2]
[390908395,1760210697620,150.0,0.00019105,2]
[390908396,1760210697995,286.17,0.00020842,2]
[390908397,1760210698489,429.26,0.00022578,2]
[390908398,1760210701242,87.77719971,0.00022589,2]
[390908399,1760210701265,112.22280029,0.00022589,2]
[390908400,1760210702404,300.0,0.00022589,2]
[390908401,1760210703289,240.0,0.00022589,2]
[390908402,1760210707123,500.0,0.00022589,2]
[390908403,1760210707348,500.0,0.00022589,2]
[390908404,1760210707432,1200.0,0.00022589,2]
[390908405,1760210707613,500.0,0.00022589,2]
[390908406,1760210707662,500.0,0.00022589,2]
[390908407,1760210709926,500.0,0.00022589,2]